bitfinex-derivatives/quotes_SOLF0:USTF0_20241127
["timestamp","ask_amount","ask_price","bid_price","bid_amount"]
[1732666009508,27.06712714,231.65,231.53,17.30843761]
[1732666009704,25.84672714,231.65,231.53,17.30843761]
[1732666009904,2.1597,231.62,231.54,2.1603]
[1732666010205,23.56672714,231.65,231.57,17.30843761]
[1732666010401,23.56672714,231.65,231.6,2.1598]
[1732666010613,2.1593,231.66,231.6,2.1598]
[1732666010802,2.28,231.69,231.57,17.30843761]
[1732666010998,2.28,231.69,231.53,17.30843761]
[1732666011197,17.30843761,231.66,231.51,2.4836]
[1732666011403,17.30843761,231.66,231.45,2.28]
[1732666011602,2.1605,231.53,231.48,19.46933761]
[1732666013108,2.28,231.58,231.49,2.1608]
[1732666013407,2.6157,231.7,231.48,17.30843761]
[1732666013608,4.8957,231.7,231.56,17.30843761]
[1732666014705,3.6076,231.7,231.6,17.30843761]
[1732666015404,3.6076,231.7,231.56,17.30843761]
[1732666016602,1.3276,231.7,231.56,17.30843761]
[1732666016807,2.1596,231.63,231.56,17.30843761]
[1732666017007,2.32,231.69,231.56,17.30843761]
[1732666018611,2.32,231.69,231.57,2.1601]
[1732666018915,1.3276,231.7,231.56,17.30843761]
[1732666019105,2.3,231.69,231.56,17.30843761]
[1732666019305,2.1595,231.64,231.58,2.16]
[1732666019921,1.3276,231.7,231.6,17.30843761]
[1732666020215,2.3,231.7,231.6,17.30843761]
[1732666020411,2.3,231.7,231.56,17.30843761]
[1732666020614,0.42084,231.71,231.6,17.30843761]
[1732666021208,2.159,231.69,231.63,2.1595]
[1732666021611,0.42084,231.71,231.6,17.30843761]
[1732666021916,2.159,231.69,231.64,17.30843761]
[1732666022115,0.42084,231.71,231.64,17.30843761]
[1732666022313,33.7,232.15,231.7,17.30843761]
[1732666022619,2.5773,231.95,231.76,17.30843761]
[1732666022818,1.2327,231.94,231.76,17.30843761]
[1732666023011,2.1578,231.82,231.76,17.30843761]
[1732666023309,2.3,231.83,231.72,17.30843761]
[1732666023510,3.6231,231.82,231.72,17.30843761]
[1732666023711,2.3,231.81,231.68,17.30843761]
[1732666023918,4.9068,231.81,231.68,17.30843761]
[1732666024117,2.6068,231.81,231.65,1.27]
[1732666024415,2.1588,231.71,231.65,1.27]
[1732666025013,2.3,231.72,231.65,1.27]
[1732666025216,2.1589,231.7,231.65,1.27]
[1732666025516,2.6068,231.81,231.68,17.30843761]
[1732666025710,17.30843761,231.88,231.68,17.30843761]
[1732666025916,2.3,231.99,231.77,2.1582]
[1732666026125,2.6068,231.94,231.77,2.1582]
[1732666026318,1.3132,231.93,231.77,2.1582]
[1732666026916,2.3,231.92,231.77,2.1582]
[1732666027318,2.3,231.92,231.76,17.30843761]
[1732666027623,17.30843761,231.88,231.68,17.30843761]
[1732666029323,2.3,231.87,231.68,17.30843761]
[1732666029524,2.1586,231.74,231.68,17.30843761]
[1732666030425,2.1586,231.74,231.68,27.92244363]
[1732666031318,2.1582,231.78,231.68,27.92244363]
[1732666031723,2.3,231.81,231.68,27.92244363]
[1732666032118,3.81,231.8,231.68,27.92244363]
[1732666032420,3.81,231.8,231.64,27.92244363]
[1732666032821,31.73244363,231.8,231.64,27.92244363]
[1732666033619,4.63401,232.0,231.72,27.92244363]
[1732666033819,1.2796,231.92,231.76,27.92244363]
[1732666034119,3.5135,231.91,231.76,27.92244363]
[1732666034716,3.5135,231.91,231.72,27.92244363]
[1732666035320,2.1582,231.78,231.72,27.92244363]
[1732666035522,2.3,231.83,231.72,27.92244363]
[1732666035725,2.3,231.84,231.72,27.92244363]
[1732666036027,2.3,231.86,231.72,27.92244363]
[1732666036230,2.3,231.86,231.74,2.1585]
[1732666036627,2.1581,231.79,231.72,30.08114363]
[1732666036825,2.3,231.86,231.72,27.92244363]
[1732666037124,2.1581,231.79,231.72,27.92244363]
[1732666037325,2.3,231.86,231.72,27.92244363]
[1732666037521,1.2916,231.85,231.68,27.92244363]
[1732666037929,2.3,231.84,231.72,27.92244363]
[1732666038630,1.2916,231.85,231.72,30.22244363]
[1732666038822,3.5916,231.85,231.72,30.22244363]
[1732666039632,3.5916,231.85,231.75,2.1584]
[1732666040325,3.5916,231.85,231.72,30.22244363]
[1732666040929,3.5916,231.85,231.76,27.92244363]
[1732666041129,1.2135,231.91,231.76,27.92244363]
[1732666041332,2.3,231.87,231.76,27.92244363]
[1732666041528,2.1576,231.84,231.78,2.1581]
[1732666042224,2.1575,231.86,231.78,2.1581]
[1732666042432,2.3,231.88,231.8,27.92244363]
[1732666042634,1.2135,231.91,231.8,30.08034363]
[1732666042635,2.3,231.89,231.8,30.08034363]
[1732666042835,2.3,231.89,231.8,27.92244363]
[1732666043040,2.3,231.89,231.72,30.08114363]
[1732666043339,2.3,231.89,231.72,27.92244363]
[1732666043837,2.3,231.89,231.74,2.1585]
[1732666044039,2.1579,231.81,231.74,2.1585]
[1732666044231,2.1579,231.81,231.75,2.1584]
[1732666044935,2.3,231.89,231.75,2.1584]
[1732666045134,2.158,231.8,231.73,2.1585]
[1732666045337,2.158,231.8,231.72,27.92244363]
[1732666046441,2.3,231.89,231.76,27.92244363]
[1732666046833,1.2135,231.91,231.8,27.92244363]
[1732666047032,2.38,231.9,231.8,27.92244363]
[1732666047238,1.2135,231.91,231.8,27.92244363]
[1732666048442,1.2135,231.91,231.66,2.5681]
[1732666048640,2.1576,231.84,231.71,2.1588]
[1732666048840,27.92244363,231.9,231.71,2.1588]
[1732666048841,2.38,231.83,231.71,2.1588]
[1732666049044,2.38,231.82,231.71,2.1588]
[1732666049239,2.38,231.82,231.7,27.92244363]
[1732666050341,2.1588,231.71,231.67,17.18387704]
[1732666051040,2.38,231.75,231.6,17.18387704]
[1732666051245,2.38,231.75,231.59,1.2313]
[1732666051440,2.1593,231.66,231.58,2.16]
[1732666051634,2.38,231.66,231.52,17.18387704]
[1732666052342,2.38,231.66,231.5,28.11485693]
[1732666052538,2.38,231.67,231.58,27.96305693]
[1732666053039,2.5236,231.71,231.58,27.96305693]
[1732666053246,2.38,231.7,231.58,27.96305693]
[1732666053638,1.2148,231.77,231.62,27.96305693]
[1732666053842,2.38,231.76,231.62,27.96305693]
[1732666054341,2.38,231.75,231.66,27.96305693]
[1732666054543,2.38,231.75,231.63,2.4854]
[1732666055043,2.1588,231.71,231.64,2.1594]
[1732666055342,2.38,231.75,231.63,2.4854]
[1732666056247,2.1586,231.73,231.64,2.1594]
[1732666056542,2.1586,231.73,231.63,2.4854]
[1732666056543,2.38,231.75,231.63,2.4854]
[1732666056741,12.96,232.05,231.63,2.4854]
[1732666056941,2.38,231.83,231.63,2.4854]
[1732666058640,2.1588,231.71,231.64,2.1594]
[1732666059141,2.38,231.75,231.63,2.4854]
[1732666060042,2.38,231.75,231.63,4.6449]
[1732666060643,2.38,231.75,231.66,2.1592]
[1732666060842,2.38,231.75,231.63,2.4854]
[1732666061046,2.1588,231.71,231.65,2.1593]
[1732666061343,2.38,231.75,231.63,2.4854]
[1732666061544,2.1582,231.78,231.68,2.1591]
[1732666061748,27.96305693,231.88,231.68,27.96305693]
[1732666062051,13.94147227,231.87,231.68,27.96305693]
[1732666062349,11.56147227,231.86,231.68,27.96305693]
[1732666062742,11.56147227,231.86,231.7,2.1588]
[1732666062743,2.38,231.85,231.7,2.1588]
[1732666063248,2.1582,231.77,231.71,2.1588]
[1732666065040,2.1583,231.76,231.71,2.1588]
[1732666065547,2.38,231.81,231.68,27.96305693]
[1732666065747,2.38,231.81,231.72,27.96305693]
[1732666065945,2.38,231.81,231.76,27.96305693]
[1732666066147,2.38,231.81,231.72,27.96305693]
[1732666067348,3.7156,231.9,231.75,2.1584]
[1732666067649,23.44342585,231.89,231.75,2.1584]
[1732666067949,21.06342585,231.88,231.73,2.1585]
[1732666068146,21.06342585,231.87,231.73,2.1585]
[1732666068448,2.38,231.89,231.73,2.1585]
[1732666068449,9.48180506,231.86,231.73,2.1585]
[1732666068650,9.48180506,231.85,231.73,2.1585]
[1732666068848,2.38,231.89,231.73,2.1585]
[1732666069146,2.38,231.89,231.72,27.96305693]
[1732666069147,2.1583,231.77,231.72,27.96305693]
[1732666069555,2.38,231.81,231.72,27.96305693]
[1732666069752,2.1583,231.77,231.72,30.12175693]
[1732666069949,2.38,231.81,231.72,30.12175693]
[1732666070150,2.158,231.8,231.72,27.96305693]
[1732666070549,2.38,231.81,231.72,27.96305693]
[1732666071148,2.1582,231.77,231.72,27.96305693]
[1732666071654,2.38,231.81,231.73,2.1585]
[1732666071655,2.1581,231.79,231.73,2.1585]
[1732666072352,2.1582,231.78,231.73,2.1585]
[1732666072653,2.38,231.81,231.72,27.96305693]
[1732666072856,2.1582,231.78,231.72,27.96305693]
[1732666073153,3.7156,231.9,231.75,2.1584]
[1732666073345,3.7156,231.9,231.76,27.96305693]
[1732666073346,23.44563792,231.89,231.76,27.96305693]
[1732666073550,9.48287245,231.88,231.76,27.96305693]
[1732666074053,9.48287245,231.88,231.79,2.158]
[1732666074554,2.1575,231.85,231.79,2.158]
[1732666074750,2.1575,231.85,231.77,17.16627891]
[1732666074946,2.4,231.88,231.77,17.16627891]
[1732666075254,2.4,231.88,231.74,3.8063]
[1732666075449,9.47842472,231.87,231.74,1.276]
[1732666075646,2.1583,231.77,231.74,1.276]
[1732666076044,2.4,231.82,231.73,1.2142]
[1732666076247,2.4,231.82,231.72,19.32487891]
[1732666076752,2.158,231.79,231.72,19.32487891]
[1732666076945,2.4,231.82,231.72,19.32487891]
[1732666077350,2.158,231.79,231.72,17.16627891]
[1732666077545,2.4,231.82,231.72,17.16627891]
[1732666077950,2.158,231.8,231.75,2.1584]
[1732666078145,2.4,231.82,231.72,17.16627891]
[1732666079450,2.4,231.82,231.74,2.1585]
[1732666079451,2.1582,231.78,231.74,2.1585]
[1732666079654,2.1582,231.78,231.72,17.16627891]
[1732666080057,2.1582,231.78,231.74,2.1585]
[1732666080251,2.4,231.82,231.74,2.1585]
[1732666080448,1.2634,231.86,231.72,17.16627891]
[1732666080750,2.4848,231.87,231.79,2.158]
[1732666080751,2.1575,231.85,231.79,2.158]
[1732666080951,2.4,231.88,231.79,2.158]
[1732666081155,9.47982131,231.87,231.79,2.158]
[1732666081461,2.4,231.88,231.79,2.158]
[1732666081755,2.4,231.88,231.76,17.16627891]
[1732666081955,2.4,231.88,231.73,2.5003]
[1732666082461,2.1577,231.83,231.73,2.5003]
[1732666082757,9.47819063,231.87,231.76,2.1583]
[1732666082949,2.1582,231.78,231.73,2.5003]
[1732666083153,2.4,231.82,231.73,2.5003]
[1732666083352,2.4,231.82,231.73,4.6588]
[1732666083556,2.1583,231.77,231.73,4.6588]
[1732666083756,2.1583,231.77,231.73,2.5003]
[1732666083966,2.1583,231.77,231.73,1.2745]
[1732666085061,2.4,231.82,231.73,1.2745]
[1732666085361,2.4,231.82,231.74,2.1585]
[1732666085956,2.572,231.86,231.73,1.2745]
[1732666086156,9.4786723,231.85,231.76,17.16627891]
[1732666086462,2.1575,231.86,231.81,2.1578]
[1732666086655,2.4,231.9,231.81,2.1578]
[1732666086852,9.47662129,231.89,231.76,17.16627891]
[1732666087053,2.1576,231.84,231.79,2.158]
[1732666087551,2.1579,231.81,231.76,17.16627891]
[1732666087747,2.4,231.9,231.75,2.4]
[1732666087951,9.47602305,231.89,231.75,2.4]
[1732666088154,2.4,231.88,231.75,2.4]
[1732666088557,2.4,231.88,231.79,17.16627891]
[1732666089159,3.8224,231.93,231.79,17.16627891]
[1732666089355,11.8737749,231.92,231.79,17.16627891]
[1732666089556,2.1573,231.88,231.82,2.1577]
[1732666089758,2.4,231.92,231.79,17.16627891]
[1732666090255,2.1572,231.88,231.83,2.1576]
[1732666091259,6.2224,231.93,231.79,17.16627891]
[1732666091452,6.2224,231.93,231.76,2.4]
[1732666091751,9.46763511,231.92,231.76,4.5583]
[1732666091956,11.56598749,231.91,231.76,2.4]
[1732666092257,9.46763511,231.9,231.76,2.4]
[1732666092658,9.46763511,231.9,231.77,2.1582]
[1732666092958,3.7081,231.93,231.77,2.1582]
[1732666092959,9.46763511,231.89,231.77,2.1582]
[1732666093165,9.46763511,231.88,231.77,2.1582]
[1732666093355,2.4,231.87,231.8,2.158]
[1732666093554,2.4,231.87,231.76,2.4]
[1732666093753,2.4,231.91,231.79,17.16627891]
[1732666093959,2.4,231.92,231.82,2.1577]
[1732666094160,9.46929311,231.91,231.82,2.1577]
[1732666094462,2.4,231.92,231.79,17.16627891]
[1732666094865,2.1571,231.89,231.79,17.16627891]
[1732666095056,2.4,231.92,231.79,17.16627891]
[1732666095257,1.3081,231.93,231.79,17.16627891]
[1732666095457,2.1574,231.86,231.8,2.1579]
[1732666095661,2.1574,231.86,231.79,17.16627891]
[1732666096458,2.4,231.92,231.79,17.16627891]
[1732666098372,2.1575,231.86,231.79,17.16627891]
[1732666099269,2.1571,231.89,231.79,17.16627891]
[1732666099464,3.7081,231.93,231.79,17.16627891]
[1732666099660,9.47568811,231.92,231.79,17.16627891]
[1732666100076,2.1573,231.88,231.84,2.1576]
[1732666100261,3.7081,231.93,231.79,17.16627891]
[1732666100567,2.1575,231.85,231.76,2.4]
[1732666101370,2.1575,231.85,231.8,2.1579]
[1732666102069,9.47776481,231.92,231.76,2.4]
[1732666102263,11.57989479,231.91,231.76,2.4]
[1732666102461,2.1577,231.83,231.78,2.1581]
[1732666103468,2.4,231.87,231.76,2.4]
[1732666103671,2.4,231.87,231.8,2.1579]
[1732666103964,2.4,231.87,231.76,2.4]
[1732666104674,2.1578,231.83,231.76,2.4]
[1732666104975,2.4,231.87,231.76,2.4]
[1732666105868,2.1577,231.84,231.79,2.158]
[1732666106064,2.4,231.87,231.79,2.158]
[1732666106272,2.4,231.87,231.76,2.4]
[1732666106474,2.1578,231.83,231.79,2.158]
[1732666106675,2.4,231.87,231.79,2.158]
[1732666107175,2.1577,231.84,231.79,2.158]
[1732666107470,2.1577,231.84,231.76,2.4]
[1732666108566,2.1577,231.84,231.8,2.1579]
[1732666109674,2.1573,231.87,231.78,17.16627891]
[1732666110178,9.49935787,231.89,231.81,2.1578]
[1732666111678,9.49935787,231.89,231.79,2.158]
[1732666111881,9.49935787,231.89,231.76,2.4]
[1732666112173,2.1578,231.82,231.77,2.1582]
[1732666112778,9.49935787,231.87,231.76,13.13120432]
[1732666112779,2.1577,231.84,231.78,2.1581]
[1732666112976,9.49935787,231.86,231.78,2.1581]
[1732666113278,4.8377,231.9,231.78,2.1581]
[1732666113575,4.8377,231.9,231.76,13.13120432]
[1732666113576,2.1578,231.82,231.77,2.1582]
[1732666115781,9.50433739,231.89,231.79,10.73120432]
[1732666115974,4.8617,231.97,231.86,10.73120432]
[1732666116387,21.11149491,231.96,231.86,10.73120432]
[1732666116583,21.11149491,231.95,231.86,10.73120432]
[1732666116782,9.50316483,231.95,231.86,10.73120432]
[1732666116979,9.50316483,231.94,231.86,10.73120432]
[1732666117279,9.50316483,231.93,231.87,2.1572]
[1732666117482,4.8617,231.97,231.86,10.73120432]
[1732666117683,11.60345492,231.96,231.86,10.73120432]
[1732666118384,11.60345492,231.96,231.89,2.1571]
[1732666118684,11.60345492,231.96,231.86,10.73120432]
[1732666118879,13.76005492,231.96,231.9,2.1569]
[1732666119084,11.60345492,231.96,231.86,10.73120432]
[1732666119783,2.1567,231.94,231.9,2.157]
[1732666119982,11.60345492,231.96,231.89,10.73120432]
[1732666120188,1.3065,231.99,231.89,10.73120432]
[1732666120980,12.90046009,231.99,231.89,10.73120432]
[1732666121181,12.90046009,231.99,231.86,10.73120432]
[1732666121182,1.3065,231.99,231.86,10.73120432]
[1732666121395,23.63041631,231.99,231.83,3.5442]
[1732666121593,11.59271199,231.98,231.83,3.5442]
[1732666121896,11.59271199,231.98,231.83,2.34]
[1732666122097,1.2876,231.97,231.83,2.34]
[1732666122289,1.2876,231.97,231.86,2.1574]
[1732666122490,1.3061,231.96,231.86,2.1574]
[1732666122893,2.157,231.9,231.85,2.1575]
[1732666123492,2.157,231.9,231.86,2.1574]
[1732666123692,2.1569,231.91,231.86,2.1574]
[1732666124988,2.1571,231.89,231.83,2.1576]
[1732666125197,2.34,231.94,231.82,10.73120432]
[1732666125499,10.73120432,231.9,231.76,10.73120432]
[1732666125996,1.221,231.89,231.76,10.73120432]
[1732666126198,2.34,231.88,231.76,10.73120432]
[1732666126388,3.6182,231.88,231.76,10.73120432]
[1732666127295,2.1577,231.83,231.78,2.1581]
[1732666128100,1.3061,231.96,231.82,10.73120432]
[1732666128488,2.1569,231.92,231.85,2.1574]
[1732666128697,11.59819762,231.95,231.82,10.73120432]
[1732666128998,1.3061,231.96,231.82,10.73120432]
[1732666129198,2.157,231.9,231.86,2.1574]
[1732666129399,2.157,231.9,231.82,10.73120432]
[1732666129997,2.1569,231.91,231.86,2.1574]
[1732666130198,2.1569,231.91,231.82,10.73120432]
[1732666131297,2.1569,231.91,231.86,2.1573]
[1732666131801,1.3061,231.96,231.82,10.73120432]
[1732666132003,1.3061,231.96,231.88,2.1571]
[1732666132203,2.1567,231.94,231.85,10.73120432]
[1732666132403,2.1567,231.94,231.89,2.157]
[1732666132603,2.1567,231.94,231.85,10.73120432]
[1732666133306,2.1567,231.94,231.9,2.157]
[1732666134896,2.1567,231.94,231.89,2.1571]
[1732666135101,2.1568,231.93,231.89,2.1571]
[1732666135498,2.6297,231.98,231.85,10.73120432]
[1732666135701,2.1569,231.92,231.87,2.1573]
[1732666136299,2.34,231.99,231.85,10.73120432]
[1732666136504,2.5122,231.97,231.85,10.73120432]
[1732666137000,2.1571,231.9,231.86,2.1573]
[1732666137201,1.2465,231.96,231.84,2.34]
[1732666137401,10.73120432,231.94,231.79,10.73120432]
[1732666137606,10.73120432,231.91,231.76,10.73120432]
[1732666137900,10.73120432,231.85,231.7,2.34]
[1732666138102,2.1581,231.79,231.73,2.1586]
[1732666140300,2.1576,231.84,231.77,2.1581]
[1732666140499,2.34,231.92,231.78,10.73120432]
[1732666140801,3.5674,231.91,231.78,10.73120432]
[1732666141001,10.73120432,231.89,231.76,2.34]
[1732666141305,10.73120432,231.89,231.72,10.73120432]
[1732666141306,10.73120432,231.86,231.72,13.07120432]
[1732666141505,4.9357,231.85,231.72,13.07120432]
[1732666141705,4.9357,231.85,231.72,10.73120432]
[1732666142211,4.9357,231.85,231.73,2.1586]
[1732666142503,2.5957,231.85,231.75,10.73120432]
[1732666142805,2.5957,231.85,231.76,2.1583]
[1732666142806,2.1579,231.81,231.76,2.1583]
[1732666143007,2.1579,231.81,231.75,10.73120432]
[1732666143208,2.5957,231.85,231.75,10.73120432]
[1732666144202,2.5957,231.85,231.78,10.73120432]
[1732666144401,2.34,231.89,231.78,10.73120432]
[1732666145008,2.1574,231.86,231.79,2.158]
[1732666145203,2.34,231.89,231.78,10.73120432]
[1732666145604,13.07120432,231.89,231.76,2.1582]
[1732666146008,13.07120432,231.89,231.75,10.73120432]
[1732666146707,2.34,231.89,231.75,10.73120432]
[1732666147212,2.1577,231.84,231.78,2.1581]
[1732666147710,2.34,231.89,231.78,2.1581]
[1732666148611,2.34,231.88,231.81,2.1579]
[1732666148803,4.02857,231.91,231.78,10.73120432]
[1732666149002,4.02857,231.91,231.74,2.34]
[1732666149003,2.1572,231.88,231.83,2.1577]
[1732666150217,6.18557,231.91,231.81,10.73120432]
[1732666150511,4.02857,231.91,231.81,10.73120432]
[1732666150808,2.1572,231.88,231.83,2.1577]
[1732666151410,4.02857,231.91,231.81,10.73120432]
[1732666151609,2.1573,231.87,231.81,10.73120432]
[1732666152003,4.02857,231.91,231.8,2.34]
[1732666152203,2.1576,231.85,231.8,4.4979]
[1732666152813,2.1576,231.85,231.81,2.1579]
[1732666153011,2.1574,231.87,231.81,2.1579]
[1732666153313,4.02857,231.91,231.81,2.1579]
[1732666153510,2.1573,231.88,231.81,2.1579]
[1732666153709,4.02857,231.91,231.8,2.34]
[1732666154013,2.34,231.9,231.84,2.1576]
[1732666154212,2.1572,231.88,231.84,2.1576]
[1732666154413,2.1572,231.88,231.82,2.1577]
[1732666154611,2.34,231.9,231.82,2.1577]
[1732666155708,2.1573,231.87,231.82,2.1577]
[1732666156509,2.1573,231.87,231.83,2.1577]
[1732666157013,10.73120432,231.89,231.78,2.1581]
[1732666157213,10.73120432,231.89,231.75,14.38390432]
[1732666157413,2.1575,231.85,231.75,14.38390432]
[1732666157716,2.1575,231.85,231.78,2.1581]
[1732666158019,2.1576,231.84,231.75,14.38390432]
[1732666158420,2.34,231.9,231.8,2.1579]
[1732666159113,2.1576,231.84,231.8,2.1579]
[1732666160218,2.1574,231.87,231.78,10.73120432]
[1732666160516,2.1574,231.87,231.75,3.6527]
[1732666160517,6.36857,231.91,231.81,10.73120432]
[1732666162015,2.1571,231.9,231.86,2.1574]
[1732666162415,0.29697,231.91,231.84,10.73120432]
[1732666162613,0.29697,231.91,231.88,2.1572]
[1732666163211,1.2854,231.98,231.9,2.157]
[1732666164026,2.1565,231.96,231.9,2.157]
[1732666164220,1.2854,231.98,231.9,10.73120432]
[1732666164820,1.2854,231.98,231.94,2.1566]
[1732666165216,2.1561,232.0,231.94,2.1566]
[1732666165613,1.2919,232.01,231.95,2.1565]
[1732666166920,2.1561,232.0,231.94,2.1567]
[1732666167922,2.1559,232.02,231.93,2.1567]
[1732666168122,0.46321,232.03,231.87,2.34]
[1732666168321,0.46321,232.03,231.92,10.73120432]
[1732666168322,2.80321,232.03,231.92,10.73120432]
[1732666168522,2.80321,232.03,231.95,2.1565]
[1732666168523,2.1561,232.01,231.95,2.1565]
[1732666168722,2.80321,232.03,231.95,2.1565]
[1732666169219,2.156,232.02,231.96,2.1565]
[1732666169623,2.156,232.02,231.97,2.1564]
[1732666171322,2.61911,232.03,231.97,2.1564]
[1732666172522,0.46321,232.03,231.92,10.73120432]
[1732666172716,0.46321,232.03,231.95,2.1566]
[1732666173722,2.1561,232.01,231.96,2.1565]
[1732666174525,2.1559,232.02,231.97,2.1564]
[1732666175122,2.156,232.01,231.97,2.1564]
[1732666175728,2.156,232.01,231.92,10.73120432]
[1732666176124,0.46321,232.03,231.92,10.73120432]
[1732666177325,2.156,232.01,231.96,2.1564]
[1732666178117,0.46321,232.03,231.98,10.73120432]
[1732666178318,0.46321,232.03,232.01,10.73120432]
[1732666178823,0.46321,232.03,232.01,12.88720432]
[1732666179232,0.46321,232.03,231.98,10.73120432]
[1732666180322,0.46321,232.03,232.01,10.73120432]
[1732666180726,0.46321,232.03,232.02,2.1559]
[1732666183225,0.46321,232.03,232.01,12.88720432]
[1732666183623,0.46321,232.03,232.01,10.73120432]
[1732666183920,0.46321,232.03,231.99,2.1561]
[1732666184625,26.90087425,232.11,231.99,2.1561]
[1732666185524,26.90087425,232.11,231.98,10.73120432]
[1732666186327,2.1558,232.03,231.98,12.88750432]
[1732666187725,2.1559,232.02,231.98,12.88750432]
[1732666187931,2.1559,232.02,231.95,10.73120432]
[1732666189134,2.1558,232.03,231.98,2.1563]
[1732666189831,24.56087425,232.11,231.98,10.73120432]
[1732666190038,2.1556,232.06,232.01,2.156]
[1732666190238,2.34,232.1,231.98,10.73120432]
[1732666191035,2.1559,232.02,231.98,12.88750432]
[1732666191234,2.34,232.1,231.98,10.73120432]
[1732666191538,2.34,232.1,231.95,10.73120432]
[1732666191737,2.1562,232.0,231.95,10.73120432]
[1732666192235,2.1562,232.0,231.95,12.88770432]
[1732666192439,2.156,232.02,231.98,6.8576747]
[1732666192644,2.34,232.03,231.98,6.8576747]
[1732666194343,2.1561,232.01,231.98,6.8576747]
[1732666194948,9.1376747,232.08,232.0,6.8576747]
[1732666195949,2.1559,232.03,232.0,6.8576747]
[1732666196842,2.1557,232.05,232.0,6.8576747]
[1732666197151,2.28,232.07,232.0,6.8576747]
[1732666197643,2.28,232.07,231.93,2.34]
[1732666197848,2.28,232.07,232.0,6.8576747]
[1732666198355,2.1556,232.05,232.0,9.0136747]
[1732666200444,2.1555,232.07,232.02,6.8576747]
[1732666200645,2.4159,232.12,232.04,6.8576747]
[1732666200845,6.8576747,232.08,231.87,290.6341]
[1732666201047,6.8576747,232.05,231.97,2.1563]
[1732666201246,6.8576747,232.03,231.87,2.6341]
[1732666201445,6.8576747,232.03,231.94,6.8576747]
[1732666201647,2.1563,231.98,231.94,6.8576747]
[1732666202050,2.1566,231.95,231.9,2.157]
[1732666202245,6.8576747,231.99,231.9,6.8576747]
[1732666202449,6.8576747,231.97,231.88,9.1376747]
[1732666202645,6.8576747,231.97,231.88,6.8576747]
[1732666203052,6.8576747,231.97,231.9,6.8576747]
[1732666203249,9.1376747,231.99,231.9,6.8576747]
[1732666203549,2.28,232.0,231.94,6.8576747]
[1732666203756,2.28,232.0,231.96,6.8576747]
[1732666203947,2.28,232.0,231.94,6.8576747]
[1732666204146,2.28,232.0,231.92,6.8576747]
[1732666204553,2.1566,231.95,231.92,6.8576747]
[1732666204753,6.8576747,231.98,231.9,6.8576747]
[1732666204960,2.1566,231.95,231.9,6.8576747]
[1732666205151,9.1376747,232.0,231.92,6.8576747]
[1732666205856,2.1565,231.96,231.92,6.8576747]
[1732666206056,9.1376747,232.0,231.92,6.8576747]
[1732666206660,2.1565,231.96,231.92,6.8576747]
[1732666208255,2.1564,231.97,231.92,6.8576747]
[1732666208856,9.1376747,232.0,231.92,6.8576747]
[1732666209054,2.1565,231.96,231.91,2.1569]
[1732666209254,2.1565,231.96,231.91,9.0145747]
[1732666209752,4.3087,232.19,231.95,6.8576747]
[1732666209951,12.83713081,232.18,231.96,1.3138]
[1732666210254,2.28,232.12,231.96,1.3138]
[1732666210459,7.4193047,232.11,231.96,1.4655]
[1732666210755,0.56163,232.11,231.96,1.4655]
[1732666210956,6.8576747,232.07,231.96,1.4655]
[1732666211148,6.8576747,232.05,231.97,6.8576747]
[1732666211350,2.28,232.04,231.95,6.8576747]
[1732666211559,9.1376747,232.03,231.96,1.07869473]
[1732666211759,2.28,232.02,231.97,1.07869473]
[1732666211958,2.28,232.01,231.95,6.8576747]
[1732666212163,2.28,232.01,231.97,6.8576747]
[1732666212557,2.28,232.01,231.98,2.1562]
[1732666213160,2.28,232.01,231.99,6.8576747]
[1732666213656,2.28,232.01,231.97,6.8576747]